bitfinex/quotes_SOLUSD_20251024
["timestamp","ask_amount","ask_price","bid_price","bid_amount"]
[1761309676079,22.88,193.71,193.64,0.65]
[1761309676306,4.09510126,193.69,193.64,0.65]
[1761309676499,7.52905151,193.7,193.65,45.72]
[1761309676884,4.09510126,193.69,193.65,45.72]
[1761309677081,3.43395025,193.7,193.66,5.16368893]
[1761309677387,3.43395025,193.7,193.66,5.81368893]
[1761309677591,3.43395025,193.72,193.67,4.74510126]
[1761309677790,13.56239239,193.77,193.67,0.65]
[1761309677791,3.43395025,193.74,193.67,0.65]
[1761309677990,3.43395025,193.74,193.66,18.58928016]
[1761309677991,4.09510126,193.75,193.68,57.20647521]
[1761309678296,4.09510126,193.75,193.68,61.30157647]
[1761309678504,7.52905151,193.76,193.69,4.74510126]
[1761309678693,3.43395025,193.75,193.71,10.87647521]
[1761309679009,3.43395025,193.76,193.72,0.65]
[1761309679202,3.43395025,193.78,193.75,5.16129032]
[1761309679405,3.43395025,193.8,193.75,5.81129032]
[1761309679720,3.43395025,193.79,193.75,5.16129032]
[1761309680006,3.43395025,193.79,193.71,11.52647521]
[1761309680007,3.43395025,193.78,193.76,45.64]
[1761309680184,4.09510126,193.78,193.77,45.64]
[1761309680387,7.53193272,193.78,193.71,28.94469249]
[1761309680691,3.43683146,193.77,193.73,4.09510126]
[1761309680904,3.43683146,193.79,193.73,4.09510126]
[1761309681209,3.43683146,193.78,193.75,5.16129032]
[1761309681405,3.43683146,193.8,193.75,5.16129032]
[1761309681610,3.43683146,193.79,193.75,5.16129032]
[1761309681811,3.43683146,193.8,193.76,45.6]
[1761309682103,3.43683146,193.79,193.76,50.34510126]
[1761309682316,3.43683146,193.82,193.76,50.34510126]
[1761309682504,3.43683146,193.81,193.76,50.34510126]
[1761309682686,3.43683146,193.8,193.76,0.65]
[1761309683006,3.43683146,193.81,193.77,45.56]
[1761309683206,3.43683146,193.8,193.74,4.09510126]
[1761309683410,7.53193272,193.81,193.75,45.56]
[1761309683609,3.43683146,193.8,193.75,45.56]
[1761309683995,3.43683146,193.8,193.75,46.21]
[1761309684518,3.43683146,193.8,193.75,0.65]
[1761309684714,4.09510126,193.77,193.76,45.52]
[1761309684893,4.09510126,193.77,193.68,10.87647521]
[1761309684894,7.53193272,193.77,193.66,12.90873633]
[1761309685091,4.09510126,193.74,193.66,17.00383759]
[1761309685290,4.09510126,193.73,193.67,5.16342231]
[1761309685490,4.09510126,193.74,193.67,68.31707936]
[1761309685704,3.43683146,193.76,193.68,4.74510126]
[1761309686106,4.09510126,193.75,193.68,4.74510126]
[1761309686320,4.09510126,193.74,193.68,0.65]
[1761309686614,4.09510126,193.74,193.69,45.48]
[1761309686994,4.09510126,193.74,193.69,46.13]
[1761309687191,4.09510126,193.74,193.7,5.16262261]
[1761309687695,0.66,193.76,193.7,5.16262261]
[1761309687892,4.09510126,193.76,193.71,45.46]
[1761309688092,4.09510126,193.72,193.65,11.52647521]
[1761309688412,4.09510126,193.72,193.66,63.51291127]
[1761309688614,0.66,193.75,193.68,4.09510126]
[1761309688925,4.09510126,193.75,193.68,4.09510126]
[1761309689111,4.09510126,193.75,193.68,4.74510126]
[1761309689312,4.09510126,193.75,193.69,50.58288915]
[1761309689488,4.09510126,193.74,193.69,50.58288915]
[1761309690194,4.09510126,193.74,193.7,45.4]
[1761309690195,4.75510126,193.74,193.7,45.4]
[1761309690893,0.66,193.74,193.7,45.4]
[1761309691092,5.16119377,193.76,193.69,5.16288915]
[1761309691312,4.09510126,193.75,193.7,45.4]
[1761309691505,5.82141323,193.75,193.71,45.36]
[1761309691707,4.09510126,193.74,193.71,45.36]
[1761309692146,3.43683146,193.77,193.71,46.01]
[1761309692423,4.09510126,193.75,193.72,45.34]
[1761309692729,4.09510126,193.75,193.73,45.34]
[1761309693040,4.09510126,193.76,193.7,0.65]
[1761309693210,4.09510126,193.76,193.71,5.16235609]
[1761309693394,4.09510126,193.76,193.72,45.32]
[1761309693590,4.09510126,193.76,193.71,5.16235609]
[1761309693896,4.75510126,193.76,193.73,45.32]
[1761309694117,103.96,193.79,193.73,45.32]
[1761309694309,4.09510126,193.78,193.73,45.32]
[1761309694906,4.09510126,193.76,193.68,11.52647521]
[1761309695108,4.09510126,193.77,193.7,4.74510126]
[1761309695320,3.44569648,193.79,193.75,4.09510126]
[1761309695513,9.25486577,193.81,193.76,45.28]
[1761309695707,9.91486577,193.81,193.76,45.28]
[1761309696345,4.09510126,193.81,193.76,45.93]
[1761309696499,9.2545634,193.82,193.76,45.93]
[1761309696699,12.70106198,193.82,193.76,45.93]
[1761309697197,3.44649858,193.82,193.78,5.16049127]
[1761309697423,4.09510126,193.83,193.78,5.16049127]
[1761309697624,4.75510126,193.83,193.78,5.16049127]
[1761309697842,3.44649858,193.83,193.78,5.16049127]
[1761309698030,3.44649858,193.83,193.79,4.74510126]
[1761309698324,22.98,193.85,193.8,0.65]
[1761309698625,3.45052365,193.84,193.81,45.2]
[1761309699193,0.1,193.85,193.81,45.2]
[1761309699194,3.55052365,193.85,193.81,45.2]
[1761309699604,4.19510126,193.85,193.8,0.65]
[1761309699802,4.19510126,193.85,193.81,45.2]
[1761309700525,0.66,193.84,193.82,45.16]
[1761309700699,3.55052365,193.85,193.82,45.16]
[1761309700898,7.64562491,193.85,193.82,45.16]
[1761309701513,7.64562491,193.85,193.83,45.12]
[1761309701725,7.64562491,193.85,193.84,45.12]
[1761309702028,3.55052365,193.85,193.84,45.12]
[1761309702214,7.64562491,193.85,193.84,45.12]
[1761309702411,4.19510126,193.85,193.84,45.12]
[1761309703621,13.49408876,193.85,193.8,5.15992054]
[1761309703825,0.69,193.84,193.76,5.16102394]
[1761309704137,4.09510126,193.8,193.77,45.06]
[1761309704429,4.09510126,193.8,193.78,45.06]
[1761309704605,4.09510126,193.79,193.74,23.57]
[1761309704805,4.09510126,193.79,193.75,45.06]
[1761309705040,4.09510126,193.78,193.75,5.16129032]
[1761309705218,4.09510126,193.78,193.76,45.04]
[1761309705804,4.09510126,193.79,193.76,45.04]
[1761309706011,4.09510126,193.8,193.76,45.04]
[1761309706211,4.09510126,193.8,193.76,45.73]
[1761309706411,4.09510126,193.81,193.76,0.69]
[1761309706636,4.09510126,193.81,193.77,45.02]
[1761309707147,4.09510126,193.78,193.69,4.09510126]
[1761309707435,4.09510126,193.74,193.7,45.0]
[1761309707932,4.09510126,193.74,193.71,44.98]
[1761309708326,4.09510126,193.74,193.72,44.98]
[1761309708522,4.09510126,193.74,193.7,0.69]
[1761309708835,4.09510126,193.75,193.7,0.69]
[1761309709018,0.69,193.77,193.72,5.16208961]
[1761309709223,3.45023171,193.78,193.72,5.16208961]
[1761309709414,4.09510126,193.78,193.73,44.94]
[1761309709619,7.54533297,193.78,193.74,44.94]
[1761309709815,4.09510126,193.77,193.74,44.94]
[1761309710129,4.09510126,193.76,193.74,44.94]
[1761309710436,4.09510126,193.76,193.75,44.92]
[1761309711425,26.97510126,193.78,193.75,44.92]
[1761309712029,26.97510126,193.79,193.76,0.69]
[1761309712229,4.09510126,193.79,193.76,0.69]
[1761309712429,22.88,193.79,193.76,0.69]
[1761309712917,22.88,193.79,193.75,50.08119555]
[1761309712918,22.88,193.79,193.75,5.16119555]
[1761309713121,26.97510126,193.79,193.76,44.88]
[1761309713442,4.09510126,193.78,193.77,44.86]
[1761309713836,22.88,193.79,193.77,44.86]
[1761309714020,26.97510126,193.79,193.77,44.86]
[1761309714219,4.09510126,193.79,193.77,44.86]
[1761309715739,5.84975353,193.81,193.71,22.88]
[1761309715740,4.78510126,193.78,193.71,22.88]
[1761309715945,4.09510126,193.77,193.72,44.86]
[1761309716245,4.09510126,193.77,193.72,45.55]
[1761309716424,4.09510126,193.77,193.73,0.72]
[1761309716826,4.09510126,193.77,193.73,5.16182315]
[1761309717129,4.09510126,193.74,193.66,0.72]
[1761309717340,4.09510126,193.72,193.67,44.78]
[1761309717730,4.09510126,193.72,193.67,0.72]
[1761309717945,4.09510126,193.71,193.67,0.72]
[1761309718261,4.09510126,193.69,193.62,11.79647521]
[1761309718425,4.09510126,193.68,193.63,45.48]
[1761309718840,4.09510126,193.67,193.62,11.07647521]
[1761309719033,4.09510126,193.67,193.62,0.2]
[1761309719234,3.45571992,193.72,193.65,4.09510126]
[1761309719418,3.45571992,193.72,193.64,10.87647521]
[1761309719419,4.09510126,193.71,193.66,0.72]
[1761309719943,4.79510126,193.71,193.64,14.97157647]
[1761309720247,4.79510126,193.71,193.65,49.88395558]
[1761309720755,4.79510126,193.71,193.66,44.7]
[1761309720938,4.09510126,193.71,193.66,45.42]
[1761309721127,4.09510126,193.71,193.66,49.51510126]
[1761309721326,7.55082118,193.71,193.66,49.51510126]
[1761309721528,4.09510126,193.71,193.66,49.51510126]
[1761309721728,7.55082118,193.71,193.66,49.51510126]
[1761309721925,7.55082118,193.71,193.66,0.72]
[1761309722229,4.79510126,193.7,193.66,5.16360793]
[1761309722435,4.79510126,193.7,193.67,44.68]
[1761309723036,4.09510126,193.7,193.67,44.68]
[1761309723634,4.09510126,193.7,193.66,5.16360793]
[1761309723834,3.45571992,193.71,193.67,45.38]
[1761309723835,4.09510126,193.71,193.67,45.38]
[1761309724035,3.45571992,193.72,193.67,45.38]
[1761309724036,26.33571992,193.72,193.67,45.38]
[1761309724249,8.25082118,193.71,193.67,44.66]
[1761309724434,4.09510126,193.69,193.67,44.62]
[1761309724637,4.09510126,193.68,193.67,44.62]
[1761309724826,3.45571992,193.71,193.67,45.34]
[1761309725025,9.55598865,193.71,193.67,45.34]
[1761309725226,6.10026873,193.72,193.68,0.72]
[1761309725446,3.45571992,193.72,193.67,45.34]
[1761309725645,6.10026873,193.72,193.67,51.44026873]
[1761309726153,6.80026873,193.72,193.68,5.16315572]
[1761309726646,9.55598865,193.73,193.69,0.72]
[1761309726821,3.45571992,193.73,193.69,0.72]
[1761309727025,3.45571992,193.74,193.72,6.10026873]
[1761309727222,3.45571992,193.77,193.73,50.66026873]
[1761309727448,6.10026873,193.79,193.73,50.66026873]
[1761309727449,3.45571992,193.78,193.74,0.72]
[1761309727746,3.45571992,193.78,193.75,44.56]
[1761309728251,3.45571992,193.78,193.75,49.72103066]
[1761309728437,3.45571992,193.79,193.75,49.72103066]
[1761309728762,3.45571992,193.78,193.75,55.80129939]
[1761309729058,3.45571992,193.8,193.76,0.72]
[1761309729226,3.45571992,193.8,193.76,6.82026873]
[1761309729557,9.55598865,193.81,193.76,0.72]
[1761309729748,3.45571992,193.8,193.75,55.80129939]
[1761309730054,3.45571992,193.79,193.75,5.16103066]
[1761309730262,6.10026873,193.77,193.76,44.5]
[1761309730629,6.10026873,193.77,193.74,49.64150107]
[1761309730849,6.10026873,193.77,193.71,5.16235609]
[1761309731151,5.16022725,193.79,193.71,5.16235609]
[1761309731152,6.10026873,193.75,193.72,44.48]
[1761309731332,6.10026873,193.77,193.72,50.58026873]
[1761309731533,3.45571992,193.76,193.72,44.48]
[1761309731733,3.45571992,193.77,193.72,45.17]
[1761309731949,9.55598865,193.77,193.73,5.16182315]
[1761309732126,3.45571992,193.77,193.73,5.16182315]
[1761309732340,9.55598865,193.78,193.73,5.85182315]
[1761309732534,3.45571992,193.79,193.73,5.85182315]
[1761309732737,3.45571992,193.78,193.73,24.85664976]
[1761309733253,3.45571992,193.78,193.74,6.10026873]
[1761309733452,3.45571992,193.78,193.75,6.10026873]
[1761309733759,3.45571992,193.79,193.75,6.10026873]
[1761309733954,3.45571992,193.79,193.76,5.16102394]
[1761309734258,3.45571992,193.78,193.76,50.27102394]
[1761309734436,9.55598865,193.81,193.76,56.37129267]
[1761309734642,3.45571992,193.8,193.77,6.10026873]
[1761309734842,6.10026873,193.82,193.77,6.79026873]
[1761309735149,3.45571992,193.81,193.78,6.79026873]
[1761309735401,3.45571992,193.82,193.78,6.79026873]
[1761309735670,3.45571992,193.83,193.8,6.10026873]
[1761309735854,0.1,193.85,193.81,44.38]
[1761309735855,3.45571992,193.82,193.81,44.38]
[1761309736032,3.45571992,193.84,193.81,49.53957741]
[1761309736229,3.45571992,193.83,193.81,49.53957741]
[1761309736435,0.1,193.85,193.82,6.79026873]
[1761309736737,0.1,193.85,193.84,6.10026873]
[1761309737133,0.1,193.85,193.84,6.79026873]
[1761309737443,0.1,193.85,193.84,51.13026873]
[1761309738153,0.1,193.85,193.84,11.94916266]
[1761309738338,0.1,193.85,193.84,56.26916266]
[1761309739167,0.1,193.85,193.84,22.82563787]
[1761309739464,4.31183578,193.95,193.9,6.10026873]
[1761309739465,3.45571992,193.95,193.9,6.10026873]
[1761309739656,3.45571992,193.96,193.91,44.97]
[1761309739834,3.45571992,193.96,193.92,44.28]
[1761309740036,3.45571992,193.96,193.93,5.15649976]
[1761309740343,3.45571992,193.98,193.93,11.94676849]
[1761309740552,3.45571992,193.98,193.94,50.36026873]
[1761309740751,22.98,193.99,193.94,51.05026873]
[1761309740956,3.45571992,193.98,193.94,44.26]
[1761309741150,10.24598865,193.98,193.91,5.15692574]
[1761309741352,6.10026873,193.92,193.87,11.25835791]
[1761309741652,6.10026873,193.92,193.88,44.24]
[1761309741969,6.10026873,193.94,193.88,17.66674394]
[1761309742148,32.43598865,193.98,193.92,6.10026873]
[1761309742463,11.94554434,193.98,193.93,44.22]
[1761309742752,0.1,193.99,193.94,10.87647521]
[1761309742953,0.1,193.99,193.96,6.10026873]
[1761309743144,0.1,193.99,193.97,50.30026873]
[1761309743349,0.1,193.99,193.97,44.2]
[1761309743559,0.1,193.99,193.98,6.79026873]
[1761309743733,0.1,193.99,193.98,17.66674394]
[1761309744144,0.1,193.99,193.98,22.82191457]
[1761309744640,0.1,193.99,193.98,45.70191457]
[1761309744854,0.1,194.03,193.98,58.58984116]
[1761309745052,0.1,194.03,194.02,6.10026873]
[1761309745261,0.1,194.03,194.02,61.82674394]
[1761309745962,0.1,194.03,194.02,44.14]
[1761309746262,0.1,194.03,194.02,44.12]
[1761309746968,6.89026873,194.03,193.97,10.87647521]
[1761309747155,3.80705297,194.02,193.98,44.12]
[1761309747353,9.9073217,194.02,193.96,22.13244614]
[1761309747567,0.79,194.03,193.97,44.08]
[1761309747766,6.10026873,194.02,193.97,44.08]
[1761309748459,0.79,194.03,193.98,5.15517063]
[1761309748460,6.89026873,194.03,193.98,5.15517063]
[1761309748845,0.69,194.02,193.98,5.15517063]
[1761309749042,6.10026873,194.0,193.93,44.08]
[1761309749242,6.10026873,194.0,193.93,50.18026873]
[1761309749642,6.10026873,194.0,193.94,6.10026873]
[1761309749840,6.10026873,194.01,193.95,6.10026873]
[1761309750050,6.10026873,194.01,193.94,24.83708732]
[1761309750251,6.10026873,194.02,193.96,6.10026873]
[1761309750661,6.20026873,194.03,193.97,6.79026873]
[1761309750868,3.79854268,194.02,193.97,6.79026873]
[1761309751069,0.1,194.03,193.97,6.79026873]
[1761309751370,3.89710837,194.03,193.98,10.87647521]
[1761309751574,3.89710837,194.03,193.98,17.66674394]
[1761309751773,3.89710837,194.03,193.98,61.66674394]
[1761309751978,0.1,194.03,193.99,6.79026873]
[1761309752181,3.89628808,194.03,194.0,5.15463917]
[1761309752351,3.89628808,194.03,194.0,11.9449079]
[1761309752551,0.1,194.03,194.01,6.79026873]
[1761309752779,0.1,194.03,194.0,11.2549079]
[1761309752956,0.1,194.03,194.0,11.9449079]
[1761309753668,0.1,194.03,194.0,5.15463917]
[1761309754779,0.1,194.03,194.0,5.15463917]
[1761309755478,0.1,194.03,194.01,0.68]
[1761309755676,0.1,194.03,194.0,49.07463917]
[1761309756081,6.88026873,194.03,193.99,5.15485821]
[1761309756267,0.1,194.03,194.01,6.10026873]
[1761309756978,0.1,194.03,194.0,17.65674394]
[1761309757374,0.1,194.03,194.02,5.15410782]
[1761309757560,0.1,194.03,194.01,5.15432377]
[1761309757917,0.68,194.02,193.96,52.74539262]
[1761309758054,22.88,193.99,193.91,6.78026873]
[1761309758259,6.10026873,193.99,193.93,6.10026873]
[1761309758568,6.10026873,193.94,193.9,11.25328137]
[1761309758765,6.10026873,193.94,193.89,5.15751531]
[1761309759185,0.68,193.93,193.89,5.15751531]
[1761309759379,6.78026873,193.93,193.89,5.15751531]
[1761309759565,6.10026873,193.91,193.87,5.15802749]
[1761309760074,6.78026873,193.98,193.9,6.10026873]
[1761309760267,3.7891437,193.97,193.89,10.87647521]
[1761309760463,3.7891437,193.96,193.91,6.10026873]
[1761309760785,22.88,193.97,193.91,6.10026873]
[1761309760981,3.7887102,193.96,193.91,6.10026873]
[1761309761389,3.7887102,193.96,193.92,5.15676567]
[1761309762785,3.7887102,193.96,193.93,6.80026873]
[1761309762991,22.88,193.97,193.93,6.80026873]
[1761309763190,22.88,193.97,193.93,6.10026873]
[1761309763388,22.88,193.97,193.94,5.15623388]
[1761309763810,28.03490794,193.99,193.94,5.15623388]
[1761309763979,3.791108,193.98,193.94,5.15623388]
[1761309764381,3.791108,193.97,193.94,5.15623388]
[1761309764576,28.03490794,193.99,193.94,5.15623388]
[1761309764781,4.48308691,193.98,193.93,11.25669203]
[1761309764990,3.79308691,193.97,193.91,5.15703161]
[1761309765184,3.79308691,193.96,193.91,5.15703161]
[1761309765501,0.69,193.98,193.91,11.25730034]
[1761309765696,3.79386024,193.97,193.91,11.25730034]
[1761309765886,3.79386024,193.96,193.91,11.25730034]
[1761309766088,3.79459936,193.95,193.91,11.25730034]
[1761309766285,3.79459936,193.94,193.88,10.87647521]
[1761309766485,3.79621145,193.93,193.88,65.81457352]
[1761309766693,5.8457022,193.96,193.88,65.81457352]
[1761309766892,3.79621205,193.95,193.9,6.10026873]
[1761309767095,3.79621205,193.94,193.9,6.10026873]
[1761309767298,3.79621205,193.93,193.9,6.10026873]
[1761309767497,5.8457022,193.96,193.9,6.10026873]
[1761309767692,3.79854571,193.95,193.9,6.10026873]
[1761309767902,3.79854571,193.94,193.9,6.10026873]
[1761309768205,22.88,193.99,193.93,11.25676849]
[1761309768401,3.80081086,193.98,193.93,11.25676849]
[1761309768608,3.80081086,193.97,193.93,11.25676849]
[1761309768907,3.80081086,193.96,193.93,11.25676849]
[1761309769095,3.80081086,193.95,193.93,5.15649976]
[1761309769298,3.80081086,193.94,193.93,5.15649976]
[1761309769603,3.80081086,193.94,193.93,6.10026873]
[1761309770088,3.80081086,193.94,193.92,5.15676567]
[1761309770410,3.80081086,193.94,193.9,5.15706279]
[1761309770411,0.69,193.94,193.9,5.15706279]
[1761309770601,11.94573689,193.97,193.9,5.15706279]
[1761309770905,3.80656488,193.96,193.9,5.15706279]
[1761309771100,3.80656488,193.95,193.9,18.05030673]
[1761309771408,3.80656488,193.94,193.9,18.75030673]
[1761309771593,3.80656488,193.93,193.9,18.75030673]
[1761309771799,0.69,193.97,193.9,18.75030673]
[1761309771996,3.80966829,193.96,193.9,24.85057546]
[1761309772220,3.80966829,193.95,193.9,24.85057546]
[1761309772506,3.80966829,193.94,193.9,18.05030673]
[1761309772696,3.80966829,193.93,193.91,44.26]
[1761309772892,3.42446387,193.98,193.91,44.26]
[1761309773203,3.81231445,193.97,193.91,44.26]
[1761309773503,3.81231445,193.96,193.9,5.15706279]
[1761309773710,3.81231445,193.95,193.9,5.15706279]
[1761309773897,3.81231445,193.94,193.9,5.15706279]
[1761309774093,3.81231445,193.93,193.9,5.15706279]
[1761309774298,3.81231445,193.92,193.9,5.15706279]
[1761309774505,3.81231445,193.91,193.9,5.15706279]
[1761309774899,3.81231445,193.91,193.9,5.85706279]
[1761309775292,3.81231445,193.91,193.9,11.25733152]
[1761309777712,3.81231445,193.91,193.9,6.10026873]
[1761309778098,3.81231445,193.91,193.89,5.15756356]
[1761309778295,3.81231445,193.9,193.89,5.15756356]
[1761309780387,7.26646589,193.9,193.89,5.15756356]
[1761309781230,7.93646589,193.9,193.89,5.15756356]
[1761309781391,7.26646589,193.9,193.89,5.15756356]
[1761309782012,7.26646589,193.9,193.88,5.15777531]
[1761309782220,0.67,193.92,193.84,12.89705022]
[1761309782221,7.93646589,193.89,193.84,12.89705022]
[1761309782416,7.26646589,193.88,193.84,12.89705022]
[1761309782622,7.26646589,193.87,193.84,12.89705022]
[1761309782914,5.71700887,193.94,193.85,0.69]
[1761309782915,0.67,193.92,193.85,0.69]
[1761309783129,7.29976163,193.91,193.85,6.79026873]
[1761309783292,6.77026873,193.92,193.85,6.79026873]
[1761309783293,7.29976163,193.9,193.85,0.69]
[1761309783490,30.0,193.86,193.84,18.99731895]
[1761309783694,4.31183578,193.92,193.85,17.66674394]
[1761309783905,3.45858824,193.91,193.85,17.66674394]
[1761309784097,3.45858824,193.9,193.89,6.10026873]
[1761309784306,33.96210451,193.96,193.89,6.10026873]
[1761309784510,30.0,193.9,193.88,6.10026873]
[1761309784733,30.0,193.9,193.88,4.08445412]
[1761309785028,30.0,193.9,193.89,9.93201768]
[1761309785404,4.98183578,193.96,193.89,9.93201768]
[1761309785609,3.45819385,193.95,193.89,9.93201768]
[1761309785813,3.45819385,193.94,193.89,5.15756356]
[1761309786120,3.45819385,193.93,193.89,18.05147247]
[1761309786327,3.45819385,193.92,193.89,18.74147247]
[1761309786531,9.91016839,193.96,193.89,18.74147247]
[1761309786836,3.45795101,193.95,193.92,5.15676567]
[1761309787134,14.22149651,193.98,193.92,5.15676567]
[1761309787135,30.0,193.93,193.92,5.15676567]
[1761309787311,4.31183578,194.0,193.93,0.69]
[1761309787511,7.29999642,193.99,193.96,4.08445412]
[1761309787717,0.1,194.03,193.98,4.08445412]
[1761309788017,7.2987826,194.02,193.98,4.08445412]
[1761309788345,3.45620141,194.02,193.99,43.95]
[1761309788508,3.45604147,194.02,193.99,43.26]
[1761309788708,7.29706799,194.01,193.98,47.34445412]
[1761309788908,0.67,194.02,193.96,43.26]
[1761309788909,3.45604147,194.0,193.96,43.26]
[1761309789131,3.45604147,194.01,193.96,47.34445412]
[1761309789331,9.33842346,194.03,193.96,47.34445412]
[1761309789332,7.29742636,194.0,193.96,48.03445412]
[1761309789550,3.45604147,194.02,193.99,4.08445412]
[1761309790038,3.45604147,194.02,193.98,43.24]
[1761309790249,3.45604147,194.02,193.98,48.01445412]
[1761309790532,0.1,194.03,193.97,10.87647521]
[1761309790533,3.55604147,194.03,193.97,10.87647521]
[1761309790750,7.29747124,194.02,193.98,43.22]
[1761309790913,3.45604147,194.01,193.98,54.09647521]
[1761309791235,3.45604147,194.02,194.0,4.08445412]
[1761309791436,0.1,194.03,194.02,10.87647521]
[1761309791611,0.1,194.03,194.02,58.16092933]
[1761309792828,0.1,194.03,194.02,61.37681416]
[1761309793711,1e-08,194.03,194.02,61.37681416]
[1761309793917,0.1,194.08,194.05,33.75647521]
[1761309794135,0.1,194.08,194.07,12.50729556]
[1761309794712,0.1,194.08,194.07,14.95112887]
[1761309794913,0.1,194.08,194.07,20.10390879]
[1761309798735,0.71,194.05,194.01,4.07465366]
[1761309798916,0.71,194.05,194.02,5.15410782]
[1761309799118,0.71,194.05,193.93,55.15649976]
[1761309799119,5.86334117,194.05,193.93,55.15649976]
[1761309799342,7.90388764,194.04,193.96,10.87647521]
[1761309799643,3.82923398,194.03,193.96,10.87647521]
[1761309799817,4.53923398,194.03,193.96,10.87647521]
[1761309800019,4.53923398,194.02,193.97,4.07465366]
[1761309800317,0.71,194.02,193.97,4.07465366]
[1761309800536,0.71,194.01,193.97,4.07465366]
[1761309800928,0.71,194.03,193.97,4.07465366]
[1761309801254,0.71,194.03,193.98,5.15517063]
[1761309801545,0.71,194.03,193.99,4.07465366]
[1761309801951,0.71,194.03,194.01,4.07465366]
[1761309802429,0.71,194.03,193.99,4.07465366]
[1761309803314,0.71,194.03,194.0,5.15463917]
[1761309805030,0.71,194.03,194.0,9.22929283]
[1761309805449,3.82973922,194.05,194.0,9.22929283]
[1761309805637,0.71,194.05,194.0,9.22929283]
[1761309805935,3.82922531,194.07,194.02,4.07465366]
[1761309806144,0.71,194.05,194.02,4.07465366]
[1761309807148,0.71,194.05,194.03,5.15384218]
[1761309807350,22.88,194.02,193.9,3.82922531]
[1761309807640,22.88,194.02,193.86,4.07465366]
[1761309807641,4.07465366,193.95,193.86,4.07465366]
[1761309807943,7.79157321,194.01,193.89,22.88]
[1761309807944,4.07465366,193.98,193.89,22.88]
[1761309808131,3.83075476,193.97,193.9,10.87647521]
[1761309808321,0.71,193.96,193.9,10.87647521]
[1761309808744,0.71,193.96,193.92,10.87647521]
[1761309810737,4.78465366,193.96,193.93,5.15649976]
[1761309810947,0.71,193.96,193.93,5.15649976]
[1761309811249,0.71,193.95,193.92,5.15675407]
[1761309812334,0.71,193.95,193.91,5.15703161]
[1761309814217,0.71,193.95,193.91,18.04961064]
[1761309814421,0.71,193.95,193.91,22.1242643]
[1761309815134,0.71,193.97,193.91,22.1242643]
[1761309815329,0.71,193.97,193.92,14.95112887]
[1761309816031,0.71,193.97,193.93,5.15649976]
[1761309818827,0.71,193.97,193.93,22.12240283]
[1761309819140,0.71,193.97,193.93,18.04774917]
[1761309820321,103.3,194.02,193.93,18.04774917]
[1761309820322,0.71,194.04,193.97,10.87647521]
[1761309820526,5.05551355,194.07,194.02,4.07465366]
[1761309820742,5.05551355,194.07,194.02,1.63149129]
[1761309820922,0.71,194.06,194.01,1.63149129]
[1761309821331,0.71,194.06,194.02,6.78559911]
[1761309821527,3.82993993,194.07,194.03,1.63149129]
[1761309821774,0.1,194.08,194.06,24.51149129]
[1761309822067,0.1,194.08,194.07,1.63149129]
[1761309822366,0.7,194.07,193.93,0.52]
[1761309822555,1.63149129,194.0,193.94,5.15623388]
[1761309822745,0.51549048,193.99,193.94,5.15623388]
[1761309822944,1.21549048,193.99,193.94,5.15623388]
[1761309823345,0.7,193.98,193.93,5.15649976]
[1761309823646,6.36987898,194.01,193.93,5.15649976]
[1761309823849,4.53069031,194.0,193.93,9.2392331]
[1761309824048,4.08273334,193.98,193.92,42.62]
[1761309824458,0.7,193.98,193.92,42.62]
[1761309824653,4.78273334,193.98,193.92,42.62]
[1761309824858,0.7,193.98,193.92,46.70273334]
[1761309825168,0.7,193.97,193.92,42.62]
[1761309825361,0.7,193.97,193.93,5.15649976]
[1761309825771,0.7,193.97,193.92,42.62]
[1761309826157,0.7,193.97,193.91,4.08273334]
[1761309826351,6.37095966,193.97,193.92,5.15667135]
[1761309826757,0.7,193.96,193.92,5.15667135]
[1761309829350,0.7,193.96,193.92,9.23940469]
[1761309829765,4.08273334,193.97,193.92,9.23940469]
[1761309829975,4.78273334,193.97,193.92,5.15667135]
[1761309830172,4.08273334,193.97,193.91,42.52]
[1761309830363,4.08273334,193.95,193.9,47.65729757]
[1761309830548,0.7,193.95,193.9,51.74003091]
[1761309830754,4.08273334,193.96,193.9,51.74003091]
[1761309830948,4.78273334,193.97,193.91,4.08273334]